fUSD/lending_fUSD_20250314
["ID","MTS","AMOUNT","RATE_DAILY","PERIOD"]
[356129831,1741936830116,-173.534334,0.00021945,7]
[356129832,1741936830160,-500.0,0.00021945,3]
[356129833,1741936830207,-500.0,0.00021945,3]
[356129834,1741936830253,-500.0,0.00021945,3]
[356129835,1741936830301,-500.0,0.00021945,3]
[356129836,1741936830348,-500.0,0.00021945,3]
[356129837,1741936830396,-500.0,0.00021945,3]
[356129838,1741936830441,-500.0,0.00021945,3]
[356129839,1741936830486,-500.0,0.00021945,3]
[356129840,1741936830530,-500.0,0.00021945,3]
[356129841,1741936830574,-500.0,0.00021945,3]
[356129842,1741936830616,-500.0,0.00021945,3]
[356129843,1741936830661,-1070.2,0.00021945,3]
[356129844,1741936830703,-500.0,0.00021945,3]
[356129845,1741936830747,-2035.33,0.00021945,3]
[356129846,1741936830793,-1063.85,0.00021945,3]
[356129847,1741936830837,-1106.92,0.00021945,3]
[356129848,1741936830881,-500.0,0.00021945,3]
[356129849,1741936830927,-501.95865869,0.00021945,3]
[356129850,1741936830972,-957.68,0.00021945,3]
[356129851,1741936831018,-500.0,0.00021945,3]
[356129852,1741936831063,-500.0,0.00021945,3]
[356129853,1741936831106,-500.0,0.00021945,3]
[356129854,1741936831148,-500.0,0.00021945,3]
[356129855,1741936831191,-505.7940194,0.00021945,3]
[356129856,1741936831236,-504.1076455,0.00021945,3]
[356129857,1741936831280,-500.0,0.00021945,3]
[356129858,1741936831326,-500.0,0.00021945,3]
[356129859,1741936831369,-500.0,0.00021945,3]
[356129860,1741936831416,-749.54,0.00021945,3]
[356129861,1741936831459,-500.0,0.00021945,3]
[356129862,1741936831505,-504.31286798,0.00021945,3]
[356129863,1741936831550,-500.0,0.00021945,3]
[356129864,1741936831598,-500.0,0.00021945,3]
[356129865,1741936831646,-900.62,0.00021945,3]
[356129866,1741936831694,-500.0,0.00021945,3]
[356129867,1741936831740,-1183.4,0.00021945,3]
[356129868,1741936831789,-500.0,0.00021945,3]
[356129869,1741936831836,-502.14765163,0.00021945,3]
[356129870,1741936831884,-354.897348,0.00021945,7]
[356129871,1741936831932,-2463.06,0.00021945,3]
[356129872,1741936831981,-502.53698546,0.00021945,3]
[356129873,1741936832030,-354.897348,0.00021945,7]
[356129874,1741936832078,-489.81962553,0.00021945,3]
[356129875,1741936832126,-500.0,0.00021945,3]
[356129876,1741936832173,-500.0,0.00021945,3]
[356129877,1741936832219,-907.67,0.00021945,3]
[356129878,1741936832264,-1751.54,0.00021945,3]
[356129879,1741936832308,-659.53,0.00021945,3]
[356129880,1741936832351,-151.355323,0.00021945,7]
[356129881,1741936832399,-500.0,0.00021945,3]
[356129882,1741936832446,-500.0,0.00021945,3]
[356129883,1741936832490,-500.0,0.00021945,3]
[356129884,1741936832535,-500.0,0.00021945,3]
[356129885,1741936832579,-503.05230284,0.00021945,3]
[356129886,1741936832623,-151.0,0.00021945,7]
[356129887,1741936832669,-504.79177538,0.00021945,3]
[356129888,1741936832717,-638.1,0.00021945,3]
[356129889,1741936832773,-502.44600408,0.00021945,3]
[356129890,1741936832827,-576.08,0.00021945,3]
[356129891,1741936832884,-500.0,0.00021945,3]
[356129892,1741936832940,-500.0,0.00021945,3]
[356129893,1741936832996,-500.0,0.00021945,3]
[356129894,1741936833056,-605.51,0.00021945,3]
[356129895,1741936833111,-500.0,0.00021945,3]
[356129896,1741936833168,-502.23342018,0.00021945,3]
[356129897,1741936833228,-500.0,0.00021945,3]
[356129898,1741936833284,-500.0,0.00021945,3]
[356129899,1741936833341,-500.0,0.00021945,3]
[356129900,1741936833393,-500.0,0.00021945,3]
[356129901,1741936833446,-626.879335,0.00021945,7]
[356129902,1741936833501,-501.91963748,0.00021945,3]
[356129903,1741936833551,-500.0,0.00021945,3]
[356129904,1741936833604,-13866.1950976,0.00021957,2]
[356129905,1741936833662,-500.0,0.00021972,3]
[356129906,1741936833716,-238.87867334,0.00021972,3]
[356129907,1741936833772,-500.0,0.00021972,3]
[356129908,1741936833823,-500.0,0.00021972,3]
[356129909,1741936833874,-500.0,0.00021972,3]
[356129910,1741936833924,-500.0,0.00021972,3]
[356129911,1741936833975,-500.0,0.00021972,3]
[356129912,1741936834026,-500.0,0.00021972,3]
[356129913,1741936834079,-500.0,0.00021972,3]
[356129914,1741936834135,-500.0,0.00021972,3]
[356129915,1741936834190,-500.0,0.00021972,3]
[356129916,1741936834241,-1173.12,0.00021972,3]
[356129917,1741936834296,-500.0,0.00021972,3]
[356129918,1741936834348,-500.0,0.00021972,3]
[356129919,1741936834401,-500.0,0.00021972,3]
[356129920,1741936834454,-357.49186073,0.00021972,3]
[356129921,1741936834507,-359.76,0.00021972,3]
[356129922,1741936834559,-500.0,0.00021972,3]
[356129923,1741936834612,-824.92,0.00021972,3]
[356129924,1741936834669,-500.0,0.00021972,3]
[356129925,1741936834722,-500.0,0.00021972,3]
[356129926,1741936834775,-1170.76,0.00021972,3]
[356129927,1741936834825,-500.0,0.00021972,3]
[356129928,1741936834878,-563.47,0.00021972,3]
[356129929,1741936834930,-724.09,0.00021972,3]
[356129930,1741936834984,-500.0,0.00021972,3]
[356129931,1741936835038,-500.0,0.00021972,3]
[356129932,1741936835091,-500.0,0.00021972,3]
[356129933,1741936835145,-500.0,0.00021972,3]
[356129934,1741936835196,-500.0,0.00021972,3]
[356129935,1741936835250,-500.0,0.00021972,3]
[356129936,1741936835300,-680.44,0.00021972,3]
[356129937,1741936835352,-500.0,0.00021972,3]
[356129938,1741936835401,-500.0,0.00021972,3]
[356129939,1741936835450,-500.0,0.00021972,3]
[356129940,1741936835501,-1067.37,0.00021972,3]
[356129941,1741936835552,-682.16,0.00021972,3]
[356129942,1741936835601,-500.0,0.00021972,3]
[356129943,1741936835653,-500.0,0.00021972,3]
[356129944,1741936835702,-1272.63,0.00021972,3]
[356129945,1741936835752,-500.0,0.00021972,3]
[356129946,1741936835801,-510.93,0.00021972,3]
[356129947,1741936835850,-500.0,0.00021972,3]
[356129948,1741936835898,-500.0,0.00021972,3]
[356129949,1741936835949,-615.94,0.00021972,3]
[356129950,1741936835999,-500.0,0.00021972,3]
[356129951,1741936836050,-500.0,0.00021972,3]
[356129952,1741936836099,-500.0,0.00021972,3]
[356129953,1741936836149,-500.0,0.00021972,3]
[356129954,1741936836195,-500.0,0.00021972,3]
[356129955,1741936836246,-540.37,0.00021972,3]
[356129956,1741936836294,-1269.96,0.00021972,3]
[356129957,1741936836341,-500.0,0.00021972,3]
[356129958,1741936836387,-500.0,0.00021972,3]
[356129959,1741936836436,-500.0,0.00021972,3]
[356129960,1741936836483,-509.93,0.00021972,3]
[356129961,1741936836530,-548.46975651,0.00021972,3]
[356129962,1741936836579,-596.66,0.00021972,3]
[356129963,1741936836628,-500.0,0.00021972,3]
[356129964,1741936836681,-500.0,0.00021972,3]
[356129965,1741936837070,-741.98,0.00021972,3]
[356129966,1741936837133,-500.0,0.00021972,3]
[356129967,1741936837175,-500.0,0.00021972,3]
[356129968,1741936837219,-500.0,0.00021972,3]
[356129969,1741936837263,-591.26883078,0.00021972,3]
[356129970,1741936837308,-1220.36,0.00021972,3]
[356129971,1741936837350,-500.0,0.00021972,3]
[356129972,1741936837395,-500.0,0.00021972,3]
[356129973,1741936837444,-500.0,0.00021972,3]
[356129974,1741936837490,-566.55,0.00021972,3]
[356129975,1741936837534,-500.0,0.00021972,3]
[356129976,1741936837578,-500.0,0.00021972,3]
[356129977,1741936837620,-500.0,0.00021972,3]
[356129978,1741936837662,-500.0,0.00021972,3]
[356129979,1741936837703,-614.84,0.00021972,3]
[356129980,1741936837744,-500.0,0.00021972,3]
[356129981,1741936837786,-500.0,0.00021972,3]
[356129982,1741936837829,-558.63,0.00021972,3]
[356129983,1741936837875,-566.10408971,0.00021972,3]
[356129984,1741936837919,-500.0,0.00021972,3]
[356129985,1741936837963,-583.61,0.00021972,3]
[356129986,1741936838006,-500.0,0.00021972,3]
[356129987,1741936838051,-500.0,0.00021972,3]
[356129988,1741936838095,-867.64,0.00021972,3]
[356129989,1741936838142,-500.0,0.00021972,3]
[356129990,1741936838184,-500.0,0.00021972,3]
[356129991,1741936838228,-500.0,0.00021972,3]
[356129992,1741936838270,-1548.19,0.00021972,3]
[356129993,1741936838313,-500.0,0.00021972,3]
[356129994,1741936838357,-1354.02,0.00021972,3]
[356129995,1741936838401,-500.0,0.00021972,3]
[356129996,1741936838445,-500.0,0.00021972,3]
[356129997,1741936838486,-500.0,0.00021972,3]
[356129998,1741936838529,-500.0,0.00021972,3]
[356129999,1741936838571,-500.0,0.00021972,3]
[356130000,1741936838620,-500.0,0.00021972,3]
[356130001,1741936838661,-500.0,0.00021972,3]
[356130002,1741936838705,-500.0,0.00021972,3]
[356130003,1741936838747,-597.86218039,0.00021972,3]
[356130004,1741936838791,-498.4863629,0.00021972,3]
[356130005,1741936838835,-500.0,0.00021972,3]
[356130006,1741936838878,-500.0,0.00021972,3]
[356130007,1741936838919,-500.0,0.00021972,3]
[356130008,1741936838963,-500.0,0.00021972,3]
[356130009,1741936839007,-529.42,0.00021972,3]
[356130010,1741936839050,-596.64,0.00021972,3]
[356130011,1741936839093,-500.0,0.00021972,2]
[356130012,1741936839136,-500.0,0.00021972,3]
[356130013,1741936839179,-575.35,0.00021972,3]
[356130014,1741936839224,-500.0,0.00021972,3]
[356130015,1741936839267,-500.0,0.00021972,3]
[356130016,1741936839310,-500.0,0.00021972,3]
[356130017,1741936839353,-500.0,0.00021972,3]
[356130018,1741936839395,-500.0,0.00021972,3]
[356130019,1741936839438,-500.0,0.00021972,3]
[356130020,1741936839481,-500.0,0.00021972,3]
[356130021,1741936839524,-500.0,0.00021972,3]
[356130022,1741936839567,-500.0,0.00021972,3]
[356130023,1741936839609,-597.12,0.00021972,3]
[356130024,1741936839653,-648.45,0.00021972,3]
[356130025,1741936839697,-569.6,0.00021972,3]
[356130026,1741936839740,-500.0,0.00021972,3]
[356130027,1741936839785,-627.74,0.00021972,3]
[356130028,1741936839830,-500.0,0.00021972,3]
[356130029,1741936839874,-500.0,0.00021972,3]
[356130030,1741936839921,-500.0,0.00021972,3]
[356130031,1741936839969,-500.0,0.00021972,3]
[356130032,1741936840016,-691.7,0.00021972,3]
[356130033,1741936840062,-500.0,0.00021972,3]
[356130034,1741936840110,-500.0,0.00021972,3]
[356130035,1741936840171,-500.0,0.00021972,3]
[356130036,1741936840220,-500.0,0.00021972,3]
[356130037,1741936840270,-500.0,0.00021972,3]
[356130038,1741936840318,-500.0,0.00021972,3]
[356130039,1741936840367,-500.0,0.00021972,3]
[356130040,1741936840414,-500.0,0.00021972,3]
[356130041,1741936840460,-500.0,0.00021972,3]
[356130042,1741936840506,-500.0,0.00021972,3]
[356130043,1741936840552,-500.0,0.00021972,3]
[356130044,1741936840597,-500.0,0.00021972,3]
[356130045,1741936840640,-500.0,0.00021972,3]
[356130046,1741936840690,-692.8,0.00021972,3]
[356130047,1741936840737,-820.39,0.00021972,3]
[356130048,1741936840784,-500.0,0.00021972,3]
[356130049,1741936840830,-500.0,0.00021972,3]
[356130050,1741936840876,-500.0,0.00021972,3]
[356130051,1741936840921,-500.0,0.00021972,3]
[356130052,1741936840971,-500.0,0.00021972,3]
[356130053,1741936841018,-500.0,0.00021972,3]
[356130054,1741936841067,-500.0,0.00021972,3]
[356130055,1741936841113,-926.76,0.00021972,3]
[356130056,1741936841159,-500.0,0.00021972,3]
[356130057,1741936841203,-1299.64,0.00021972,3]
[356130058,1741936841253,-500.0,0.00021972,3]
[356130059,1741936841298,-831.57,0.00021972,3]
[356130060,1741936841344,-500.0,0.00021972,3]
[356130061,1741936841390,-343.11738035,0.00021972,3]
[356130062,1741936841435,-500.0,0.00021972,3]
[356130063,1741936841478,-500.0,0.00021972,3]
[356130064,1741936841523,-500.0,0.00021972,3]
[356130065,1741936841568,-393.10964839,0.00021972,3]
[356130066,1741936841614,-2030.3,0.00021972,3]
[356130067,1741936841659,-500.0,0.00021972,3]
[356130068,1741936841704,-3639.46,0.00021972,3]
[356130069,1741936841749,-500.0,0.00021972,3]
[356130070,1741936841793,-1846.63,0.00021972,3]
[356130071,1741936841838,-480.852658,0.00021972,3]
[356130072,1741936841883,-1224.97,0.00021972,3]
[356130073,1741936841927,-500.0,0.00021972,3]
[356130074,1741936841974,-1644.43,0.00021972,3]
[356130075,1741936842022,-875.7,0.00021972,3]
[356130076,1741936842069,-1493.72,0.00021972,3]
[356130077,1741936842115,-616.8,0.00021972,3]
[356130078,1741936842160,-500.0,0.00021972,3]
[356130079,1741936842203,-500.0,0.00021972,3]
[356130080,1741936842247,-500.0,0.00021972,3]
[356130081,1741936842292,-153.467374,0.00021972,3]
[356130082,1741936842338,-500.0,0.00021972,3]
[356130083,1741936842385,-534.7,0.00021972,3]
[356130084,1741936842432,-500.0,0.00021972,3]
[356130085,1741936842478,-528.18,0.00021972,3]
[356130086,1741936842525,-500.0,0.00021972,3]
[356130087,1741936842572,-1825.29,0.00021972,3]
[356130088,1741936842621,-500.0,0.00021972,3]
[356130089,1741936842666,-500.0,0.00021972,3]
[356130090,1741936842713,-500.0,0.00021972,3]
[356130091,1741936842760,-500.0,0.00021972,3]
[356130092,1741936842808,-500.0,0.00021972,3]
[356130093,1741936842854,-500.0,0.00021972,3]
[356130094,1741936842902,-500.0,0.00021972,3]
[356130095,1741936842948,-500.0,0.00021972,3]
[356130096,1741936842997,-500.0,0.00021972,3]
[356130097,1741936843046,-1450.38,0.00021972,3]
[356130098,1741936843099,-960.85,0.00021972,3]
[356130099,1741936843371,-500.0,0.00021972,3]
[356130100,1741936843418,-500.0,0.00021972,3]
[356130101,1741936843464,-2324.14,0.00021972,3]
[356130102,1741936843510,-500.0,0.00021972,3]
[356130103,1741936843555,-500.0,0.00021972,3]
[356130104,1741936843601,-910.74,0.00021972,3]
[356130105,1741936843649,-500.0,0.00021972,3]
[356130106,1741936843695,-601.73,0.00021972,3]
[356130107,1741936843746,-500.0,0.00021972,3]
[356130108,1741936843793,-151.0,0.00021972,7]
[356130109,1741936843840,-530.29,0.00021972,3]
[356130110,1741936843888,-1089.91,0.00021972,3]
[356130111,1741936843935,-500.0,0.00021972,3]
[356130112,1741936843981,-500.0,0.00021972,3]
[356130113,1741936844031,-561.64,0.00021972,3]
[356130114,1741936844079,-500.0,0.00021972,3]
[356130115,1741936844126,-500.0,0.00021972,3]
[356130116,1741936844173,-500.0,0.00021972,3]
[356130117,1741936844220,-500.0,0.00021972,3]
[356130118,1741936844266,-500.0,0.00021972,3]
[356130119,1741936844311,-500.0,0.00021972,3]
[356130120,1741936844356,-500.0,0.00021972,3]
[356130121,1741936844400,-500.0,0.00021972,3]
[356130122,1741936844444,-500.0,0.00021972,3]
[356130123,1741936844487,-500.0,0.00021972,3]
[356130124,1741936844532,-500.0,0.00021972,3]
[356130125,1741936844576,-614.74,0.00021972,3]
[356130126,1741936844623,-977.71,0.00021972,3]
[356130127,1741936844666,-500.0,0.00021972,2]
[356130128,1741936844712,-500.0,0.00021972,3]
[356130129,1741936844754,-500.0,0.00021972,3]
[356130130,1741936844799,-1144.59,0.00021972,3]
[356130131,1741936844843,-828.55,0.00021972,3]
[356130132,1741936844888,-500.0,0.00021972,3]
[356130133,1741936844935,-500.0,0.00021972,3]
[356130134,1741936844983,-523.87,0.00021972,3]
[356130135,1741936845030,-565.79,0.00021972,3]
[356130136,1741936845076,-602.5,0.00021972,3]
[356130137,1741936845122,-500.0,0.00021972,3]
[356130138,1741936845169,-500.0,0.00021972,3]
[356130139,1741936845213,-151.0,0.00021972,7]
[356130140,1741936845258,-500.0,0.00021972,3]
[356130141,1741936845301,-151.0,0.00021972,7]
[356130142,1741936845344,-500.0,0.00021972,3]
[356130143,1741936845388,-500.0,0.00021972,3]
[356130144,1741936845433,-1550.67,0.00021972,3]
[356130145,1741936845479,-500.0,0.00021972,3]
[356130146,1741936845523,-500.0,0.00021972,3]
[356130147,1741936845569,-700.51,0.00021972,3]
[356130148,1741936845614,-500.0,0.00021972,3]
[356130149,1741936845660,-500.0,0.00021972,3]
[356130150,1741936845703,-500.0,0.00021972,3]
[356130151,1741936845746,-500.0,0.00021972,3]
[356130152,1741936845790,-500.0,0.00021972,3]
[356130153,1741936845835,-500.0,0.00021972,3]
[356130154,1741936845878,-687.0,0.00021972,3]
[356130155,1741936845923,-500.0,0.00021972,3]
[356130156,1741936845966,-517.2038665,0.00021972,3]
[356130157,1741936846013,-500.0,0.00021972,3]
[356130158,1741936846060,-500.0,0.00021972,3]
[356130159,1741936846104,-500.0,0.00021972,3]
[356130160,1741936846148,-500.0,0.00021972,3]
[356130161,1741936846193,-151.0,0.00021972,7]
[356130162,1741936846236,-500.0,0.00021972,3]
[356130163,1741936846281,-500.0,0.00021972,3]
[356130164,1741936846327,-500.0,0.00021972,3]
[356130165,1741936846371,-500.0,0.00021972,3]
[356130166,1741936846415,-500.0,0.00021972,3]
[356130167,1741936846459,-500.0,0.00021972,3]
[356130168,1741936846501,-500.0,0.00021972,3]
[356130169,1741936846545,-817.75,0.00021972,3]
[356130170,1741936846589,-500.0,0.00021972,3]
[356130171,1741936846634,-820.47,0.00021972,3]
[356130172,1741936846680,-713.63,0.00021972,3]
[356130173,1741936846726,-151.0,0.00021972,7]
[356130174,1741936846768,-500.0,0.00021972,3]
[356130175,1741936846812,-500.0,0.00021972,3]
[356130176,1741936846854,-500.0,0.00021972,3]
[356130177,1741936846898,-500.0,0.00021972,3]
[356130178,1741936846940,-500.0,0.00021972,3]
[356130179,1741936846984,-500.0,0.00021972,3]
[356130180,1741936847029,-500.0,0.00021972,3]
[356130181,1741936847075,-500.0,0.00021972,3]
[356130182,1741936847121,-996.86,0.00021972,3]
[356130183,1741936847167,-500.0,0.00021972,3]
[356130184,1741936847211,-500.0,0.00021972,3]
[356130185,1741936847256,-1317.11,0.00021972,3]
[356130186,1741936847300,-500.0,0.00021972,3]
[356130187,1741936847345,-500.0,0.00021972,3]
[356130188,1741936847387,-1005.89,0.00021972,3]
[356130189,1741936847431,-500.0,0.00021972,3]
[356130190,1741936847474,-500.0,0.00021972,3]
[356130191,1741936847516,-500.0,0.00021972,3]
[356130192,1741936847560,-500.0,0.00021972,3]
[356130193,1741936847605,-547.37,0.00021972,3]
[356130194,1741936847652,-500.0,0.00021972,3]
[356130195,1741936847697,-500.0,0.00021972,3]
[356130196,1741936847790,-500.0,0.00021972,3]
[356130197,1741936847838,-151.0,0.00021972,7]
[356130198,1741936847884,-527.11,0.00021972,3]
[356130199,1741936847932,-151.0,0.00021972,7]
[356130200,1741936847981,-500.0,0.00021972,3]
[356130201,1741936848030,-500.0,0.00021972,3]
[356130202,1741936848077,-500.0,0.00021972,3]
[356130203,1741936848124,-500.0,0.00021972,3]
[356130204,1741936848173,-500.0,0.00021972,3]
[356130205,1741936848222,-500.0,0.00021972,3]
[356130206,1741936848270,-592.52580894,0.00021972,3]
[356130207,1741936848316,-500.0,0.00021972,3]
[356130208,1741936848361,-669.94,0.00021972,3]
[356130209,1741936848405,-500.0,0.00021972,3]
[356130210,1741936848449,-500.0,0.00021972,3]
[356130211,1741936848494,-1385.58,0.00021972,3]
[356130212,1741936848537,-500.0,0.00021972,3]
[356130213,1741936848581,-500.0,0.00021972,3]
[356130214,1741936848626,-500.0,0.00021972,3]
[356130215,1741936848671,-528.70455055,0.00021972,3]
[356130216,1741936848712,-500.0,0.00021972,3]
[356130217,1741936848757,-500.0,0.00021972,3]
[356130218,1741936848800,-500.0,0.00021972,3]
[356130219,1741936848847,-500.0,0.00021972,3]
[356130220,1741936848892,-500.0,0.00021972,3]
[356130221,1741936848940,-677.48,0.00021972,3]
[356130222,1741936848989,-500.0,0.00021972,3]
[356130223,1741936849037,-550.15,0.00021972,3]
[356130224,1741936849082,-500.0,0.00021972,3]
[356130225,1741936849127,-500.0,0.00021972,3]
[356130226,1741936849173,-517.91,0.00021972,3]
[356130227,1741936849220,-500.0,0.00021972,3]
[356130228,1741936849267,-500.0,0.00021972,3]
[356130229,1741936849317,-797.96,0.00021972,3]
[356130230,1741936849364,-536.18,0.00021972,3]
[356130231,1741936849410,-500.0,0.00021972,3]
[356130232,1741936849454,-500.0,0.00021972,3]
[356130233,1741936849500,-500.0,0.00021972,3]
[356130234,1741936849545,-558.34,0.00021972,3]
[356130235,1741936849592,-517.45,0.00021972,3]
[356130236,1741936849636,-500.0,0.00021972,3]
[356130237,1741936849684,-500.0,0.00021972,3]
[356130238,1741936849729,-537.35,0.00021972,3]
[356130239,1741936849777,-500.0,0.00021972,3]
[356130240,1741936849823,-643.93,0.00021972,3]
[356130241,1741936849868,-500.0,0.00021972,3]
[356130242,1741936849917,-500.0,0.00021972,3]
[356130243,1741936849965,-500.0,0.00021972,3]
[356130244,1741936850013,-500.0,0.00021972,3]
[356130245,1741936850062,-1730.15,0.00021972,3]
[356130246,1741936850109,-500.0,0.00021972,3]
[356130247,1741936850156,-500.0,0.00021972,3]
[356130248,1741936850203,-3556.92,0.00021972,3]
[356130249,1741936850248,-500.0,0.00021972,3]
[356130250,1741936850295,-500.0,0.00021972,3]
[356130251,1741936850340,-500.0,0.00021972,3]
[356130252,1741936850385,-534.15,0.00021972,3]
[356130253,1741936850430,-500.0,0.00021972,3]
[356130254,1741936850478,-783.75,0.00021972,3]
[356130255,1741936850525,-500.0,0.00021972,3]
[356130256,1741936850572,-500.0,0.00021972,3]
[356130257,1741936850618,-849.01,0.00021972,3]
[356130258,1741936850664,-500.0,0.00021972,3]
[356130259,1741936850711,-670.89,0.00021972,3]
[356130260,1741936850757,-500.0,0.00021972,2]
[356130261,1741936850803,-500.0,0.00021972,3]
[356130262,1741936850848,-151.0,0.00021972,7]
[356130263,1741936850893,-500.0,0.00021972,3]
[356130264,1741936850939,-500.0,0.00021972,3]
[356130265,1741936850986,-1924.04,0.00021972,3]
[356130266,1741936851033,-856.19,0.00021972,3]
[356130267,1741936851080,-605.75,0.00021972,3]
[356130268,1741936851124,-151.0,0.00021972,7]
[356130269,1741936851171,-1041.65,0.00021972,3]
[356130270,1741936851214,-500.0,0.00021972,3]
[356130271,1741936851259,-500.0,0.00021972,3]
[356130272,1741936851303,-983.66,0.00021972,3]
[356130273,1741936851348,-500.0,0.00021972,3]
[356130274,1741936851391,-500.0,0.00021972,3]
[356130275,1741936851438,-735.35,0.00021972,3]
[356130276,1741936851484,-151.0,0.00021972,7]
[356130277,1741936851530,-666.51,0.00021972,3]
[356130278,1741936851575,-868.79,0.00021972,2]
[356130279,1741936851619,-500.0,0.00021972,3]
[356130280,1741936851661,-500.0,0.00021972,3]
[356130281,1741936851706,-509.95178142,0.00021972,3]
[356130282,1741936851750,-500.0,0.00021972,3]
[356130283,1741936851796,-787.16,0.00021972,3]
[356130284,1741936851839,-500.0,0.00021972,3]
[356130285,1741936851882,-1295.98,0.00021972,3]
[356130286,1741936851926,-500.0,0.00021972,3]
[356130287,1741936851972,-500.0,0.00021972,3]
[356130288,1741936852019,-1289.57,0.00021972,3]
[356130289,1741936852065,-500.0,0.00021972,3]
[356130290,1741936852110,-574.68,0.00021972,3]
[356130291,1741936852153,-1037.78,0.00021972,3]
[356130292,1741936852198,-1084.8,0.00021972,3]
[356130293,1741936852243,-500.0,0.00021972,3]
[356130294,1741936852290,-500.0,0.00021972,3]
[356130295,1741936852331,-713.92,0.00021972,3]
[356130296,1741936852373,-500.0,0.00021972,3]
[356130297,1741936852417,-500.0,0.00021972,3]
[356130298,1741936852460,-770.02,0.00021972,3]
[356130299,1741936852503,-500.0,0.00021972,3]
[356130300,1741936852546,-151.0,0.00021972,7]
[356130301,1741936852589,-500.0,0.00021972,3]
[356130302,1741936852633,-698.51,0.00021972,3]
[356130303,1741936852676,-500.0,0.00021972,3]
[356130304,1741936852723,-500.0,0.00021972,3]
[356130305,1741936852769,-500.0,0.00021972,3]
[356130306,1741936852814,-151.0,0.00021972,7]
[356130307,1741936852858,-1013.77,0.00021972,3]
[356130308,1741936852902,-500.0,0.00021972,3]
[356130309,1741936852947,-915.96,0.00021972,3]
[356130310,1741936852995,-500.0,0.00021972,3]
[356130311,1741936853043,-500.0,0.00021972,3]
[356130312,1741936853091,-500.0,0.00021972,3]
[356130313,1741936853139,-576.71,0.00021972,3]
[356130314,1741936853183,-151.0,0.00021972,7]
[356130315,1741936853227,-500.0,0.00021972,3]
[356130316,1741936853273,-500.0,0.00021972,3]
[356130317,1741936853318,-746.99,0.00021972,3]
[356130318,1741936853362,-1277.38,0.00021972,3]
[356130319,1741936853404,-852.69,0.00021972,3]
[356130320,1741936853450,-500.0,0.00021972,3]
[356130321,1741936853495,-500.0,0.00021972,3]
[356130322,1741936853542,-2258.77,0.00021972,3]
[356130323,1741936853590,-662.9,0.00021972,3]
[356130324,1741936853636,-500.0,0.00021972,3]
[356130325,1741936853683,-500.0,0.00021972,3]
[356130326,1741936853731,-500.0,0.00021972,3]
[356130327,1741936853777,-500.0,0.00021972,3]
[356130328,1741936853826,-772.07,0.00021972,3]
[356130329,1741936853871,-500.0,0.00021972,3]
[356130330,1741936853918,-500.0,0.00021972,3]